[Event "*** Titled Tuesday 3|2 Blitz"]
[Site "Chess.com"]
[Date "2017.06.06"]
[Round "4"]
[White "PelinGorki"]
[Black "Keranke"]
[Result "0-1"]
[WhiteElo "2361"]
[BlackElo "2673"]
[TimeControl "180+2"]
[EndTime "14:38:16 PDT"]
[Termination "Keranke won by resignation"]

1. e4 {[%clk 0:03:02]} 1... g6 {[%clk 0:03:00.4]} 2. d4 {[%clk 0:03:02.2]} 2...
Bg7 {[%clk 0:03:01.5]} 3. Nf3 {[%clk 0:03:01.9]} 3... d6 {[%clk 0:03:02.7]} 4.
Nc3 {[%clk 0:03:01]} 4... a6 {[%clk 0:03:03.1]} 5. a4 {[%clk 0:03:00.5]} 5...
Nf6 {[%clk 0:02:59.9]} 6. Bc4 {[%clk 0:02:55.6]} 6... O-O {[%clk 0:03:00.5]} 7.
Qe2 {[%clk 0:02:54.9]} 7... Nc6 {[%clk 0:02:57]} 8. d5 {[%clk 0:02:52.5]} 8...
Nb4 {[%clk 0:02:53.9]} 9. O-O {[%clk 0:02:50.5]} 9... c6 {[%clk 0:02:54.5]} 10.
dxc6 {[%clk 0:02:33.8]} 10... Nxc6 {[%clk 0:02:53.9]} 11. Bg5 {[%clk 0:02:32.8]}
11... Bg4 {[%clk 0:02:53.8]} 12. Qe3 {[%clk 0:02:09.2]} 12... Rc8 {[%clk
0:02:45.4]} 13. Bb3 {[%clk 0:01:51.2]} 13... Bxf3 {[%clk 0:02:45.2]} 14. Qxf3
{[%clk 0:01:32]} 14... Nd4 {[%clk 0:02:46.3]} 15. Qd1 {[%clk 0:01:32.4]} 15...
Nxb3 {[%clk 0:02:47.4]} 16. cxb3 {[%clk 0:01:34.3]} 16... Qa5 {[%clk 0:02:47.5]}
17. Bd2 {[%clk 0:01:32]} 17... Qe5 {[%clk 0:02:29.7]} 18. Qe2 {[%clk 0:01:30.7]}
18... Rc6 {[%clk 0:02:22.2]} 19. f4 {[%clk 0:01:31]} 19... Qe6 {[%clk
0:02:21.2]} 20. b4 {[%clk 0:01:26.2]} 20... Qc4 {[%clk 0:02:16.1]} 21. Qxc4
{[%clk 0:01:14.5]} 21... Rxc4 {[%clk 0:02:18]} 22. e5 {[%clk 0:01:16]} 22...
dxe5 {[%clk 0:02:12.4]} 23. fxe5 {[%clk 0:01:17.9]} 23... Ng4 {[%clk 0:02:04.3]}
24. e6 {[%clk 0:01:13.5]} 24... Bd4+ {[%clk 0:02:04.4]} 25. Kh1 {[%clk
0:01:13.8]} 25... Nf2+ {[%clk 0:02:05.5]} 26. Rxf2 {[%clk 0:00:58.1]} 26... Bxf2
{[%clk 0:02:07.4]} 27. exf7+ {[%clk 0:00:53.8]} 27... Rxf7 {[%clk 0:02:08.2]}
28. b5 {[%clk 0:00:55.2]} 28... Bd4 {[%clk 0:01:54.7]} 29. bxa6 {[%clk 0:00:51]}
29... bxa6 {[%clk 0:01:56.6]} 30. h3 {[%clk 0:00:28.2]} 30... e5 {[%clk
0:01:52.7]} 31. Rc1 {[%clk 0:00:25.2]} 31... Rb7 {[%clk 0:01:47.9]} 32. Rc2
{[%clk 0:00:13.1]} 32... e4 {[%clk 0:01:42.3]} 33. Bc1 {[%clk 0:00:06]} 33...
Bxc3 {[%clk 0:01:36.6]} 34. bxc3 {[%clk 0:00:07.9]} 34... Rxa4 {[%clk
0:01:38.2]} 35. Kh2 {[%clk 0:00:08]} 35... Kf7 {[%clk 0:01:38.7]} 36. Be3 {[%clk
0:00:09]} 36... Rc4 {[%clk 0:01:39.6]} 37. Bd4 {[%clk 0:00:09.7]} 37... a5
{[%clk 0:01:39]} 38. Re2 {[%clk 0:00:10.1]} 38... Re7 {[%clk 0:01:39.9]} 39. Kg3
{[%clk 0:00:11.4]} 39... a4 {[%clk 0:01:41.2]} 40. Kf4 {[%clk 0:00:12.7]} 40...
a3 {[%clk 0:01:41.9]} 41. Ra2 {[%clk 0:00:13.7]} 41... Ra4 {[%clk 0:01:42.9]}
42. Ke3 {[%clk 0:00:14.9]} 42... Re6 {[%clk 0:01:40.4]} 43. g4 {[%clk
0:00:16.2]} 43... Ke8 {[%clk 0:01:41.5]} 44. h4 {[%clk 0:00:16.6]} 44... Kd7
{[%clk 0:01:43]} 45. g5 {[%clk 0:00:13.5]} 45... Kc6 {[%clk 0:01:44.2]} 46. Kd2
{[%clk 0:00:10.5]} 46... Kd5 {[%clk 0:01:44.4]} 0-1

[Event "*** Titled Tuesday 3|2 Blitz"]
[Site "Chess.com"]
[Date "2017.06.06"]
[Round "4"]
[White "goingin33"]
[Black "Squirlolz"]
[Result "0-1"]
[WhiteElo "2185"]
[BlackElo "2350"]
[TimeControl "180+2"]
[EndTime "14:38:18 PDT"]
[Termination "Squirlolz won by resignation"]

1. d4 {[%clk 0:03:02]} 1... Nf6 {[%clk 0:03:00.8]} 2. Bg5 {[%clk 0:03:02.6]}
2... d5 {[%clk 0:03:01.2]} 3. Nd2 {[%clk 0:02:59.1]} 3... e6 {[%clk 0:02:55.2]}
4. e3 {[%clk 0:02:59.8]} 4... c5 {[%clk 0:02:53.1]} 5. c3 {[%clk 0:02:59.4]}
5... Nc6 {[%clk 0:02:53.9]} 6. Bd3 {[%clk 0:03:00.2]} 6... h6 {[%clk 0:02:45.2]}
7. Bh4 {[%clk 0:02:57]} 7... Be7 {[%clk 0:02:45.9]} 8. f4 {[%clk 0:02:49.5]}
8... O-O {[%clk 0:02:30.3]} 9. Ngf3 {[%clk 0:02:48.8]} 9... b6 {[%clk
0:02:30.7]} 10. Ne5 {[%clk 0:02:46.2]} 10... Bb7 {[%clk 0:02:31.3]} 11. O-O
{[%clk 0:02:37.6]} 11... Ne4 {[%clk 0:02:28]} 12. Bxe7 {[%clk 0:02:37.5]} 12...
Nxe7 {[%clk 0:02:28.6]} 13. Bxe4 {[%clk 0:02:24]} 13... dxe4 {[%clk 0:02:29.2]}
14. Qe2 {[%clk 0:02:13.5]} 14... Nf5 {[%clk 0:02:24]} 15. Rfd1 {[%clk
0:01:59.4]} 15... Qc7 {[%clk 0:02:20.2]} 16. dxc5 {[%clk 0:01:58.1]} 16... Qxc5
{[%clk 0:02:12.4]} 17. Ndc4 {[%clk 0:01:55]} 17... Rfd8 {[%clk 0:01:56.1]} 18.
b4 {[%clk 0:01:54.3]} 18... Qc7 {[%clk 0:01:56.5]} 19. Rxd8+ {[%clk 0:01:38.8]}
19... Rxd8 {[%clk 0:01:55.7]} 20. Rd1 {[%clk 0:01:39.8]} 20... Rxd1+ {[%clk
0:01:12.3]} 21. Qxd1 {[%clk 0:01:41.7]} 21... Bd5 {[%clk 0:01:13.8]} 22. Qe2
{[%clk 0:00:57.1]} 22... f6 {[%clk 0:01:13.3]} 23. g4 {[%clk 0:00:56.7]} 23...
fxe5 {[%clk 0:01:00.3]} 24. Nxe5 {[%clk 0:00:54.4]} 24... Nh4 {[%clk 0:00:59.6]}
25. c4 {[%clk 0:00:55.5]} 25... Bb7 {[%clk 0:01:00.2]} 26. c5 {[%clk 0:00:43.7]}
26... Nf3+ {[%clk 0:00:48.2]} 27. Nxf3 {[%clk 0:00:42.7]} 27... exf3 {[%clk
0:00:50.1]} 28. Qc4 {[%clk 0:00:44.3]} 28... Bd5 {[%clk 0:00:50]} 29. Qb5 {[%clk
0:00:43]} 29... bxc5 {[%clk 0:00:38.3]} 30. f5 {[%clk 0:00:40.2]} 30... exf5
{[%clk 0:00:34.6]} 31. gxf5 {[%clk 0:00:41]} 31... Qe5 {[%clk 0:00:34]} 32. bxc5
{[%clk 0:00:35.9]} 32... Qxf5 {[%clk 0:00:32.9]} 33. c6 {[%clk 0:00:32.4]} 33...
f2+ {[%clk 0:00:33.6]} 34. Kf1 {[%clk 0:00:33.4]} 34... Bg2+ {[%clk 0:00:34.5]}
35. Kxg2 {[%clk 0:00:34.7]} 35... Qxb5 {[%clk 0:00:34.4]} 36. c7 {[%clk
0:00:34.6]} 36... f1=Q+ {[%clk 0:00:33.7]} 0-1

[Event "*** Titled Tuesday 3|2 Blitz"]
[Site "Chess.com"]
[Date "2017.06.06"]
[Round "4"]
[White "GMAkobianSTL"]
[Black "temiksmozg"]
[Result "0-1"]
[WhiteElo "2575"]
[BlackElo "2454"]
[TimeControl "180+2"]
[EndTime "14:38:36 PDT"]
[Termination "temiksmozg won on time"]

1. d4 {[%clk 0:02:04.1]} 1... f5 {[%clk 0:02:58.4]} 2. Nc3 {[%clk 0:02:04.5]}
2... d5 {[%clk 0:02:56.1]} 3. Bf4 {[%clk 0:02:04.6]} 3... c6 {[%clk 0:02:55]} 4.
e3 {[%clk 0:02:05.4]} 4... g6 {[%clk 0:02:52.1]} 5. Bd3 {[%clk 0:02:02.7]} 5...
Nh6 {[%clk 0:02:52.2]} 6. Nf3 {[%clk 0:01:58]} 6... Nf7 {[%clk 0:02:51.6]} 7. h3
{[%clk 0:01:54.5]} 7... Bg7 {[%clk 0:02:49.4]} 8. Ne2 {[%clk 0:01:45.2]} 8...
Nd7 {[%clk 0:02:49]} 9. g4 {[%clk 0:01:33.6]} 9... e5 {[%clk 0:02:20.2]} 10.
dxe5 {[%clk 0:01:32.9]} 10... Ndxe5 {[%clk 0:02:18.5]} 11. Nxe5 {[%clk
0:01:32.8]} 11... Nxe5 {[%clk 0:02:18]} 12. Bxe5 {[%clk 0:01:33.6]} 12... Bxe5
{[%clk 0:02:18.6]} 13. gxf5 {[%clk 0:01:31.1]} 13... O-O {[%clk 0:01:59]} 14. c3
{[%clk 0:01:03.1]} 14... Qh4 {[%clk 0:01:52.1]} 15. Nd4 {[%clk 0:00:49.9]} 15...
Bxd4 {[%clk 0:01:47.3]} 16. cxd4 {[%clk 0:00:49.5]} 16... Bxf5 {[%clk 0:01:48]}
17. Rh2 {[%clk 0:00:41.7]} 17... Rae8 {[%clk 0:01:39.5]} 18. Qd2 {[%clk
0:00:24.9]} 18... Qxd4 {[%clk 0:01:21.1]} 19. Bxf5 {[%clk 0:00:23.2]} 19...
Qxd2+ {[%clk 0:01:16.5]} 20. Kxd2 {[%clk 0:00:23.6]} 20... Rxf5 {[%clk
0:01:18.4]} 21. Rg1 {[%clk 0:00:18.2]} 21... Kg7 {[%clk 0:01:05.8]} 22. h4
{[%clk 0:00:15.4]} 22... Kh6 {[%clk 0:00:57.5]} 23. Rg3 {[%clk 0:00:12]} 23...
Re4 {[%clk 0:00:57.2]} 24. Ke2 {[%clk 0:00:11.3]} 24... Rh5 {[%clk 0:00:40]} 25.
Rgh3 {[%clk 0:00:10.1]} 25... Rhe5 {[%clk 0:00:34.5]} 26. Kd3 {[%clk 0:00:10.6]}
26... Rf5 {[%clk 0:00:33.9]} 27. f4 {[%clk 0:00:10.5]} 27... Kh5 {[%clk
0:00:31.6]} 28. Rg3 {[%clk 0:00:11.1]} 28... h6 {[%clk 0:00:32.6]} 29. Rhg2
{[%clk 0:00:11.5]} 29... Re6 {[%clk 0:00:32.8]} 30. b4 {[%clk 0:00:10.8]} 30...
b6 {[%clk 0:00:33]} 31. Rc2 {[%clk 0:00:10.2]} 31... Rd6 {[%clk 0:00:22.1]} 32.
Kd4 {[%clk 0:00:09.4]} 32... Rf7 {[%clk 0:00:20.6]} 33. Kd3 {[%clk 0:00:03.7]}
33... d4 {[%clk 0:00:19.7]} 0-1

[Event "*** Titled Tuesday 3|2 Blitz"]
[Site "Chess.com"]
[Date "2017.06.06"]
[Round "4"]
[White "DiamondCrusher22"]
[Black "silverback96"]
[Result "0-1"]
[WhiteElo "2013"]
[BlackElo "2122"]
[TimeControl "180+2"]
[EndTime "14:38:38 PDT"]
[Termination "silverback96 won by checkmate"]

1. e4 {[%clk 0:03:02]} 1... e6 {[%clk 0:03:00]} 2. d4 {[%clk 0:03:01.8]} 2... d5
{[%clk 0:03:01.5]} 3. Nd2 {[%clk 0:03:02.8]} 3... Nf6 {[%clk 0:03:02.6]} 4. e5
{[%clk 0:03:03.1]} 4... Nfd7 {[%clk 0:03:04.3]} 5. Bd3 {[%clk 0:03:03.8]} 5...
c5 {[%clk 0:03:06]} 6. c3 {[%clk 0:03:05]} 6... Nc6 {[%clk 0:03:07.6]} 7. Ne2
{[%clk 0:03:06]} 7... cxd4 {[%clk 0:03:09.1]} 8. cxd4 {[%clk 0:03:06.8]} 8... f6
{[%clk 0:03:10.8]} 9. exf6 {[%clk 0:03:06.4]} 9... Nxf6 {[%clk 0:03:12.7]} 10.
Nf3 {[%clk 0:03:04]} 10... Bd6 {[%clk 0:03:14.6]} 11. O-O {[%clk 0:03:04.2]}
11... O-O {[%clk 0:03:16]} 12. Bg5 {[%clk 0:03:03.4]} 12... Bd7 {[%clk
0:03:16.9]} 13. Re1 {[%clk 0:02:55.5]} 13... Be8 {[%clk 0:03:17.8]} 14. Ng3
{[%clk 0:02:52.9]} 14... Bd7 {[%clk 0:03:13.6]} 15. Qb3 {[%clk 0:02:40.8]} 15...
Qc7 {[%clk 0:03:06.9]} 16. Rac1 {[%clk 0:02:33.4]} 16... Rac8 {[%clk 0:03:05]}
17. Ne5 {[%clk 0:02:16.6]} 17... Bxe5 {[%clk 0:02:53.5]} 18. dxe5 {[%clk
0:02:14.1]} 18... Ng4 {[%clk 0:02:54.7]} 19. Be7 {[%clk 0:01:41.2]} 19... Nxf2
{[%clk 0:01:15.2]} 20. Bxf8 {[%clk 0:01:26.4]} 20... Rxf8 {[%clk 0:01:17.1]} 21.
Bb1 {[%clk 0:00:20.4]} 21... Qb8 {[%clk 0:01:03.5]} 22. Rf1 {[%clk 0:00:19.8]}
22... Ng4 {[%clk 0:01:01.5]} 23. Qc2 {[%clk 0:00:17.8]} 23... g6 {[%clk
0:00:56.1]} 24. Rxf8+ {[%clk 0:00:13.6]} 24... Qxf8 {[%clk 0:00:56.3]} 25. Rf1
{[%clk 0:00:13.7]} 25... Qh6 {[%clk 0:00:56.6]} 26. Rf3 {[%clk 0:00:04.2]} 26...
Qxh2+ {[%clk 0:00:52.8]} 27. Kf1 {[%clk 0:00:05.1]} 27... Nd4 {[%clk 0:00:42.2]}
28. Qc7 {[%clk 0:00:03.9]} 28... Nxf3 {[%clk 0:00:43.4]} 29. Qd8+ {[%clk
0:00:04.3]} 29... Kg7 {[%clk 0:00:44.7]} 30. Qe7+ {[%clk 0:00:03.8]} 30... Kh6
{[%clk 0:00:46.3]} 31. Qf8+ {[%clk 0:00:04.2]} 31... Kg5 {[%clk 0:00:44.9]} 32.
Qe7+ {[%clk 0:00:04.4]} 32... Kf4 {[%clk 0:00:44.1]} 33. Ne2+ {[%clk 0:00:04.9]}
33... Ke3 {[%clk 0:00:43.3]} 34. Qc5+ {[%clk 0:00:04.5]} 34... d4 {[%clk
0:00:41.9]} 35. Qc1+ {[%clk 0:00:04.6]} 35... Nd2+ {[%clk 0:00:43.1]} 36. Ke1
{[%clk 0:00:02.4]} 36... Qh1+ {[%clk 0:00:42.1]} 37. Ng1 {[%clk 0:00:03.2]}
37... Qxg1# {[%clk 0:00:43.3]} 0-1

[Event "*** Titled Tuesday 3|2 Blitz"]
[Site "Chess.com"]
[Date "2017.06.06"]
[Round "4"]
[White "dolynachess"]
[Black "TomsKantans"]
[Result "0-1"]
[WhiteElo "2313"]
[BlackElo "2480"]
[TimeControl "180+2"]
[EndTime "14:38:42 PDT"]
[Termination "TomsKantans won by resignation"]

1. c4 {[%clk 0:03:02]} 1... e5 {[%clk 0:03:00]} 2. g3 {[%clk 0:03:02.9]} 2...
Nc6 {[%clk 0:03:01]} 3. Bg2 {[%clk 0:03:04.4]} 3... Bc5 {[%clk 0:03:01.7]} 4. e3
{[%clk 0:03:03.6]} 4... d6 {[%clk 0:03:01.3]} 5. Ne2 {[%clk 0:03:05.1]} 5... a6
{[%clk 0:03:02.5]} 6. h3 {[%clk 0:03:06.1]} 6... Ba7 {[%clk 0:03:02.9]} 7. O-O
{[%clk 0:03:05.3]} 7... h5 {[%clk 0:03:02.7]} 8. Nbc3 {[%clk 0:03:02.9]} 8... h4
{[%clk 0:02:59.9]} 9. g4 {[%clk 0:03:03.9]} 9... f5 {[%clk 0:03:01.2]} 10. gxf5
{[%clk 0:02:58.1]} 10... Bxf5 {[%clk 0:03:03.1]} 11. f4 {[%clk 0:02:58]} 11...
Qd7 {[%clk 0:02:57.4]} 12. Kh2 {[%clk 0:02:57.7]} 12... O-O-O {[%clk 0:02:40.4]}
13. Nd5 {[%clk 0:02:58.3]} 13... exf4 {[%clk 0:02:36.7]} 14. Rxf4 {[%clk
0:02:32]} 14... g5 {[%clk 0:02:34.1]} 15. Rf2 {[%clk 0:02:30.6]} 15... g4 {[%clk
0:02:33]} 16. hxg4 {[%clk 0:02:30.6]} 16... Bxg4 {[%clk 0:02:34.1]} 17. Qf1
{[%clk 0:02:22.7]} 17... h3 {[%clk 0:02:18.7]} 18. Bh1 {[%clk 0:02:21.5]} 18...
Ne5 {[%clk 0:01:30.1]} 19. Ng3 {[%clk 0:02:00.9]} 19... Be6 {[%clk 0:01:20.3]}
20. Rf4 {[%clk 0:01:51.8]} 20... Ng4+ {[%clk 0:01:13]} 21. Rxg4 {[%clk
0:01:52.4]} 21... Bxg4 {[%clk 0:01:14.9]} 22. d4 {[%clk 0:01:47.7]} 22... c6
{[%clk 0:01:04.8]} 23. Nf4 {[%clk 0:01:45.5]} 23... Nh6 {[%clk 0:00:50.1]} 24.
Bd2 {[%clk 0:01:40.5]} 24... Rdf8 {[%clk 0:00:40.4]} 25. Qd3 {[%clk 0:01:17.2]}
25... Rhg8 {[%clk 0:00:39.4]} 26. Be4 {[%clk 0:01:02.3]} 26... Be6 {[%clk
0:00:33.6]} 27. Nxe6 {[%clk 0:01:01.5]} 27... Qxe6 {[%clk 0:00:34.3]} 28. Rf1
{[%clk 0:00:30.1]} 28... Ng4+ {[%clk 0:00:28.6]} 29. Kg1 {[%clk 0:00:24.6]}
29... Rxf1+ {[%clk 0:00:13.3]} 30. Qxf1 {[%clk 0:00:21.7]} 30... Qxe4 {[%clk
0:00:12.4]} 31. Nxe4 {[%clk 0:00:18.2]} 31... Nxe3+ {[%clk 0:00:13.7]} 32. Kf2
{[%clk 0:00:12.6]} 32... Nxf1 {[%clk 0:00:14.5]} 33. Kxf1 {[%clk 0:00:10.7]}
33... h2 {[%clk 0:00:16]} 34. Nxd6+ {[%clk 0:00:11.8]} 34... Kd7 {[%clk
0:00:16.5]} 0-1

[Event "*** Titled Tuesday 3|2 Blitz"]
[Site "Chess.com"]
[Date "2017.06.06"]
[Round "4"]
[White "Pierrebl"]
[Black "GGuseinov"]
[Result "1-0"]
[WhiteElo "2558"]
[BlackElo "2693"]
[TimeControl "180+2"]
[EndTime "14:38:48 PDT"]
[Termination "Pierrebl won by checkmate"]

1. e4 {[%clk 0:03:02]} 1... c5 {[%clk 0:03:00.6]} 2. Nf3 {[%clk 0:03:01.8]} 2...
Nc6 {[%clk 0:03:01.3]} 3. d4 {[%clk 0:03:01.7]} 3... cxd4 {[%clk 0:03:02.5]} 4.
Nxd4 {[%clk 0:03:03.3]} 4... g6 {[%clk 0:03:03.8]} 5. Nc3 {[%clk 0:03:02.6]}
5... Bg7 {[%clk 0:03:04.5]} 6. Be3 {[%clk 0:03:04.1]} 6... Nf6 {[%clk
0:03:05.8]} 7. Bc4 {[%clk 0:03:04.5]} 7... O-O {[%clk 0:03:05.2]} 8. Bb3 {[%clk
0:03:05.6]} 8... d6 {[%clk 0:03:05.7]} 9. f3 {[%clk 0:03:05.3]} 9... Bd7 {[%clk
0:03:06.9]} 10. Qd2 {[%clk 0:03:06.3]} 10... Nxd4 {[%clk 0:03:08]} 11. Bxd4
{[%clk 0:03:07.2]} 11... b5 {[%clk 0:03:09.2]} 12. a4 {[%clk 0:03:05.8]} 12...
bxa4 {[%clk 0:03:10.3]} 13. Bxa4 {[%clk 0:03:03.4]} 13... Bxa4 {[%clk
0:03:09.4]} 14. Rxa4 {[%clk 0:03:01.7]} 14... Qb8 {[%clk 0:03:10.3]} 15. b3
{[%clk 0:02:58.1]} 15... Rc8 {[%clk 0:03:11.2]} 16. O-O {[%clk 0:02:56.9]} 16...
Qb7 {[%clk 0:03:11.3]} 17. Rfa1 {[%clk 0:02:47.4]} 17... a6 {[%clk 0:03:12.2]}
18. Qd3 {[%clk 0:02:16.3]} 18... Rc6 {[%clk 0:03:09.6]} 19. Nd5 {[%clk
0:02:08.4]} 19... Nxd5 {[%clk 0:03:06.4]} 20. exd5 {[%clk 0:02:04.1]} 20...
Bxd4+ {[%clk 0:03:07]} 21. Rxd4 {[%clk 0:02:03.4]} 21... Rc5 {[%clk 0:03:08.2]}
22. Re1 {[%clk 0:01:43.1]} 22... a5 {[%clk 0:03:04.3]} 23. Qe2 {[%clk
0:01:36.3]} 23... Rxd5 {[%clk 0:03:01.1]} 24. Rxd5 {[%clk 0:01:35]} 24... Qxd5
{[%clk 0:03:03]} 25. Qxe7 {[%clk 0:01:32.6]} 25... Qc5+ {[%clk 0:03:04.2]} 26.
Re3 {[%clk 0:01:18.6]} 26... a4 {[%clk 0:02:37.6]} 27. bxa4 {[%clk 0:01:13.1]}
27... Kg7 {[%clk 0:02:33.6]} 28. Qe4 {[%clk 0:01:02.1]} 28... Rb8 {[%clk
0:02:13.9]} 29. c3 {[%clk 0:01:00.3]} 29... Rb1+ {[%clk 0:01:55]} 30. Qxb1
{[%clk 0:01:00.8]} 30... Qxe3+ {[%clk 0:01:56.1]} 31. Kf1 {[%clk 0:01:00.1]}
31... Qxc3 {[%clk 0:01:57]} 32. Qa2 {[%clk 0:00:50.6]} 32... Qc1+ {[%clk
0:01:45]} 33. Kf2 {[%clk 0:00:50.6]} 33... Qc5+ {[%clk 0:01:45.9]} 34. Kf1
{[%clk 0:00:51.7]} 34... d5 {[%clk 0:01:47.2]} 35. a5 {[%clk 0:00:50.9]} 35...
d4 {[%clk 0:01:48.2]} 36. a6 {[%clk 0:00:46.1]} 36... Qc1+ {[%clk 0:01:44.8]}
37. Kf2 {[%clk 0:00:42.1]} 37... Qe3+ {[%clk 0:01:45.5]} 38. Kf1 {[%clk
0:00:29.5]} 38... d3 {[%clk 0:01:32.1]} 39. a7 {[%clk 0:00:30.4]} 39... d2
{[%clk 0:01:10.1]} 40. Qa1+ {[%clk 0:00:19.8]} 40... Kh6 {[%clk 0:01:11]} 41.
a8=Q {[%clk 0:00:20.9]} 41... Qd3+ {[%clk 0:01:12.1]} 42. Kf2 {[%clk 0:00:22.2]}
42... d1=Q {[%clk 0:01:13.3]} 43. Qf8+ {[%clk 0:00:21.7]} 43... Kh5 {[%clk
0:01:14.5]} 44. g4+ {[%clk 0:00:17]} 44... Kg5 {[%clk 0:01:15.7]} 45. Qe5+
{[%clk 0:00:17.2]} 45... f5 {[%clk 0:01:07.1]} 46. Qff6+ {[%clk 0:00:16.5]}
46... Kh6 {[%clk 0:01:07.8]} 47. Qg7+ {[%clk 0:00:17.1]} 47... Kg5 {[%clk
0:01:08.8]} 48. Qef6+ {[%clk 0:00:18.3]} 48... Kf4 {[%clk 0:01:09.9]} 49. Qh6+
{[%clk 0:00:19.6]} 49... g5 {[%clk 0:01:10.1]} 50. Qhxg5# {[%clk 0:00:20.6]} 1-0

[Event "*** Titled Tuesday 3|2 Blitz"]
[Site "Chess.com"]
[Date "2017.06.06"]
[Round "4"]
[White "jcibarra"]
[Black "yurisolo"]
[Result "0-1"]
[WhiteElo "2633"]
[BlackElo "2477"]
[TimeControl "180+2"]
[EndTime "14:39:01 PDT"]
[Termination "yurisolo won by resignation"]

1. e4 {[%clk 0:03:02]} 1... c5 {[%clk 0:03:00.7]} 2. Nf3 {[%clk 0:03:03.4]} 2...
d6 {[%clk 0:03:01.9]} 3. d4 {[%clk 0:03:04.9]} 3... Nf6 {[%clk 0:03:02.6]} 4.
dxc5 {[%clk 0:03:03.9]} 4... Nxe4 {[%clk 0:03:02.9]} 5. cxd6 {[%clk 0:03:04.5]}
5... Nc6 {[%clk 0:03:03]} 6. Na3 {[%clk 0:03:05.6]} 6... exd6 {[%clk 0:02:51.8]}
7. Bc4 {[%clk 0:02:54.9]} 7... Be6 {[%clk 0:02:28.5]} 8. Bxe6 {[%clk 0:02:48.5]}
8... fxe6 {[%clk 0:02:30.4]} 9. O-O {[%clk 0:02:37.2]} 9... d5 {[%clk 0:02:31]}
10. Nb5 {[%clk 0:02:35.1]} 10... Bc5 {[%clk 0:02:26.9]} 11. c4 {[%clk
0:02:34.7]} 11... O-O {[%clk 0:02:17.3]} 12. cxd5 {[%clk 0:02:32.9]} 12... Nxf2
{[%clk 0:01:49.7]} 13. Rxf2 {[%clk 0:02:26.2]} 13... exd5 {[%clk 0:01:51.2]} 14.
Nc3 {[%clk 0:02:18.3]} 14... Bxf2+ {[%clk 0:01:47.2]} 15. Kxf2 {[%clk
0:02:20.2]} 15... Qb6+ {[%clk 0:01:44.2]} 16. Kf1 {[%clk 0:02:17.3]} 16... d4
{[%clk 0:01:44.8]} 17. Ne2 {[%clk 0:02:10.7]} 17... Rae8 {[%clk 0:01:40.4]} 18.
Qb3+ {[%clk 0:02:05.8]} 18... Qxb3 {[%clk 0:01:37.5]} 19. axb3 {[%clk
0:02:07.7]} 19... d3 {[%clk 0:01:28.6]} 20. Ng3 {[%clk 0:02:06.3]} 20... Nd4
{[%clk 0:01:19.1]} 21. Bd2 {[%clk 0:01:44.7]} 21... Nxb3 {[%clk 0:00:42.6]} 22.
Rd1 {[%clk 0:01:45.1]} 22... a5 {[%clk 0:00:39.8]} 23. Bc3 {[%clk 0:01:44]}
23... Rd8 {[%clk 0:00:37.1]} 24. Kf2 {[%clk 0:01:35.3]} 24... b5 {[%clk
0:00:35.6]} 25. Ne4 {[%clk 0:01:17]} 25... d2 {[%clk 0:00:20.1]} 26. Ke3 {[%clk
0:01:10.8]} 26... Rfe8 {[%clk 0:00:20.9]} 27. Be5 {[%clk 0:01:08.6]} 27... Rd5
{[%clk 0:00:16.7]} 28. Nexd2 {[%clk 0:01:03.5]} 28... a4 {[%clk 0:00:11.9]} 29.
Ke2 {[%clk 0:00:59.1]} 29... Rdxe5+ {[%clk 0:00:11.9]} 30. Nxe5 {[%clk
0:00:59.3]} 30... Rxe5+ {[%clk 0:00:13.8]} 31. Kf2 {[%clk 0:01:00]} 31... Rd5
{[%clk 0:00:14.8]} 32. Ke2 {[%clk 0:00:59.3]} 32... Rxd2+ {[%clk 0:00:12.2]} 33.
Rxd2 {[%clk 0:01:00.5]} 33... Nxd2 {[%clk 0:00:14.1]} 34. Kxd2 {[%clk
0:01:02.4]} 34... b4 {[%clk 0:00:15]} 35. Kd3 {[%clk 0:01:01.8]} 35... Kf7
{[%clk 0:00:15.5]} 36. Kc4 {[%clk 0:01:02.1]} 36... a3 {[%clk 0:00:16.6]} 37.
bxa3 {[%clk 0:01:02.3]} 37... bxa3 {[%clk 0:00:18.5]} 38. Kb3 {[%clk 0:01:04.2]}
38... Ke6 {[%clk 0:00:19.8]} 39. Kxa3 {[%clk 0:01:05.7]} 39... Kd5 {[%clk
0:00:21]} 40. Kb4 {[%clk 0:01:02.3]} 40... Kd4 {[%clk 0:00:22.2]} 41. Kb5 {[%clk
0:01:02]} 41... Ke3 {[%clk 0:00:22.2]} 42. Kc5 {[%clk 0:01:01.2]} 42... Kf2
{[%clk 0:00:23.4]} 43. g4 {[%clk 0:01:00.3]} 43... Kg2 {[%clk 0:00:24.3]} 44.
Kd4 {[%clk 0:01:01.4]} 44... Kxh2 {[%clk 0:00:22]} 45. Ke4 {[%clk 0:01:01.7]}
45... Kg3 {[%clk 0:00:22.3]} 46. Kf5 {[%clk 0:01:00.7]} 46... Kh4 {[%clk
0:00:23.2]} 47. g5 {[%clk 0:00:59]} 47... Kh5 {[%clk 0:00:22]} 48. Kf4 {[%clk
0:00:56.1]} 48... g6 {[%clk 0:00:22.6]} 0-1